Cogmind - Beta 13 @@@ ROGUE MODE // 2024.04.01 @ 20:18:34 Player: MasterLemons Result: Destroyed by D-53 Grenadier with Mini Grenade Launcher Performance ------------- Evolutions (0) 0 Regions Visited (2) 400 Robots Destroyed (16) 80 Value Destroyed (496) 496 Prototype IDs (0) 0 Alien Tech Used (0) 0 Bonus (-55) -55 TOTAL SCORE: 921 Bonus ------- Friendly Fire -55 Cogmind --------- Core Integrity 0/250 Matter 76/300 Energy 84/100 System Corruption 0% Temperature Cool (0) Movement Walking (120) Location -10/Mines Parts ------- > --- POWER (1) -------- (None) > --- PROPULSION (2) --- Aluminum Leg > --- UTILITY (2) ------ Small Storage Unit > --- WEAPON (2) ------- Assault Rifle > --- INVENTORY (8) ---- Light Ion Engine Terrain Scanner Light Armor Plating Peak State ------------ > --- POWER ------------ Light Ion Engine > --- PROPULSION ------- Aluminum Leg Aluminum Leg > --- UTILITY ---------- Small Storage Unit Light Armor Plating > --- WEAPON ----------- Grenade Launcher Grenade Launcher > --- INVENTORY -------- Light Ion Engine Aluminum Leg Aluminum Leg Assault Rifle [Rating: 7] Favorites ----------- Power Light Ion Engine Engine Light Ion Engine Propulsion Aluminum Leg Leg Aluminum Leg Utility Small Storage Unit Device Tractor Beam Storage Small Storage Unit Protection Light Armor Plating Weapon Grenade Launcher Ballistic Gun Assault Rifle Launcher Grenade Launcher Build | -11 -10 -10 ------- Run | Yrd Mat Min Slots Evolved . | . . . Power . | . . . Propulsion . | . . . Utility . | . . . Weapon . | . . . Parts Attached 16 | 6 3 7 Power 2 | 1 1 . Engine 2 | 1 1 . Core . | . . . Reactor . | . . . Propulsion 4 | 2 . 2 Treads . | . . . Leg 4 | 2 . 2 Wheel . | . . . Hover . | . . . Flight . | . . . Utility 3 | 1 . 2 Device 1 | . . 1 Storage 1 | 1 . . Processor . | . . . Hackware . | . . . Protection 1 | . . 1 Artifact . | . . . Weapon 7 | 2 2 3 Energy Gun . | . . . Energy Cannon . | . . . Ballistic Gun 4 | 2 1 1 Ballistic Cannon . | . . . Launcher 3 | . 1 2 Special Weapon . | . . . Impact Weapon . | . . . Slashing Weapon . | . . . Piercing Weapon . | . . . Special Melee Weapon . | . . . Unidentified Prototypes . | . . . Parts Lost 9 | . 1 8 Power 2 | . 1 1 Propulsion 3 | . . 3 Utility 1 | . . 1 Weapon 3 | . . 3 Highest Loss Streak 7 | . 1 7 To Critical Strikes . | . . . Average Slot Usage (%) 86 | . 82 89 Engine 12 | . 11 12 Leg 27 | . 28 27 Device 1 | . . 2 Storage 14 | . 14 14 Protection 2 | . . 5 Ballistic Gun 9 | . 20 . Launcher 17 | . 7 26 Naked Turns . | . . . Heaviest Build 17 | 14 15 17 Greatest Support 20 | 20 20 20 Greatest Overweight (x) 1 | . . 1 Average Overweight (x) . | . . . Largest Inventory Capacity 8 | 8 8 8 Average Capacity 7 | 5 8 8 Most Carried 7 | 5 7 6 Average Carried 3 | 1 2 4 Final Capacity 8 | 8 8 8 Final Carried 5 | 1 5 3 Class Distribution -------------------- 100% | Mutant Dominant Class ---------------- Mutant | -10/Materials Mutant | -10/Mines Resources | -11 -10 -10 ----------- Run | Yrd Mat Min Matter Collected 496 | 241 111 144 Remotely 4 | . . 4 Salvage Created 364 | . 272 92 Parts 17 | . 17 . Haulers Intercepted 1 | . 1 . Recyclers Shooed . | . . . Parts Field Recycled . | . . . Retrieved Matter . | . . . Parts Self-Destructed . | . . . Prevented . | . . . Kills | -11 -10 -10 ------- Run | Yrd Mat Min Combat Hostiles Destroyed 24 | . 7 17 Melee 1 | . . 1 Guns 1 | . 1 . AOE 22 | . 6 16 Classes Destroyed 6 | . 4 2 Worker 3 | . 3 . Hauler 1 | . 1 . Watcher 1 | . 1 . Grunt 9 | . 7 2 Sentry 2 | . . 2 Assembled 13 | . . 13 Best Kill Streak 13 | . 10 13 Combat Bots Only 13 | . 5 13 Max Kills in Single Turn 4 | . 3 4 Gunslinging . | . . . Exploded 4 | . 2 4 Melee 1 | . . 1 Uniques/NPCs Destroyed . | . . . Combat | -11 -10 -10 -------- Run | Yrd Mat Min Hostile Shots Fired 75 | . 25 50 Missed 32 | . 9 23 Damage Taken 930 | . 299 631 Core 263 | . 95 168 Absorbed by Shields . | . . . Core Remaining (%) 100 | 100 . . Volleys Fired 27 | . 14 13 Largest 2 | . 2 2 Hottest 60 | . 50 60 Shots Fired 51 | . 28 23 Gun 15 | . 15 . Cannon . | . . . Launcher 36 | . 13 23 Special . | . . . Kinetic 15 | . 15 . Thermal . | . . . Explosive 36 | . 13 23 Electromagnetic . | . . . Robot Hit Streak 8 | . 6 8 Robot Miss Streak 2 | . 2 1 Penetration Max . | . . . Secondary Targets . | . . . Shots Hit Robots 23 | . 13 10 Core Hits 66 | . 20 46 Critical Kills . | . . . Critical Parts Destroyed . | . . . Critical Strikes . | . . . Melee Attacks . | . . . Impact . | . . . Slashing . | . . . Piercing . | . . . Sneak Attacks . | . . . Combat Hostiles . | . . . Follow-up Attacks . | . . . Damage Inflicted 2026 | . 775 1251 Guns 60 | . 60 . Cannons . | . . . Explosions 1963 | . 715 1248 Melee . | . . . Ramming 3 | . . 3 Kinetic 60 | . 60 . Thermal . | . . . Explosive 1963 | . 715 1248 Electromagnetic . | . . . Impact . | . . . Slashing . | . . . Piercing . | . . . Highest Corruption . | . . . Average Corruption . | . . . Corruption Purged . | . . . Corruption Blocked . | . . . Overload Shots . | . . . Overflow Damage 65 | . 27 38 Projectiles . | . . . Explosions 65 | . 27 38 Melee . | . . . Knockbacks . | . . . Impact . | . . . Kinetic . | . . . Secondary . | . . . Self-Inflicted Damage 188 | . 96 92 Shots 7 | . 4 3 Rammed . | . . . Targets Rammed 1 | . . 1 Kicked 1 | . . 1 Crushed . | . . . Highest Temperature 18 | . 9 18 Average Temperature 7 | . 3 12 Received Heat Transfer 168 | . 114 54 Siege Activations . | . . . Robots Corrupted . | . . . Combat Hostiles . | . . . Parts Fried . | . . . Impact Corruptions . | . . . Robots Melted . | . . . Combat Hostiles . | . . . Parts Melted . | . . . Heat Transferred . | . . . Parts Sabotaged . | . . . Parts Stolen . | . . . Parts Stripped . | . . . Power Chain Reactions . | . . . Alert | -11 -10 -10 ------- Run | Yrd Mat Min Peak Influence 284 | . 270 284 Initial 105 | . . 105 Average 157 | . 84 247 Maximum Alert Level 1 | . 1 1 Low Security (%) 41 | 100 73 4 Level 1 58 | . 26 95 Level 2 . | . . . Level 3 . | . . . Level 4 . | . . . Level 5 . | . . . High Security . | . . . Max Security . | . . . Squads Dispatched 2 | . 2 . Investigation . | . . . Extermination . | . . . Reinforcement 2 | . 2 . Assault . | . . . Garrison . | . . . Intercept . | . . . Searches Triggered . | . . . Construction Impeded . | . . . Haulers Reinforced . | . . . Active Scanning Responses . | . . . Cargo Convoy Interrupts . | . . . Stealth | -11 -10 -10 --------- Run | Yrd Mat Min Distress Signals 1 | . 1 . Communications Jammed . | . . . Distress Signals . | . . . Times Spotted 38 | . 12 26 Peak Tracking Total 17 | . 4 17 Tactical Retreats 1 | . 1 . Traps | -11 -10 -10 ------- Run | Yrd Mat Min Traps Triggered . | . . . Indirectly . | . . . Trap Hack Attempts . | . . . Triggered . | . . . Disarmed . | . . . Reprogrammed . | . . . Reused . | . . . Traps Extracted . | . . . Installed . | . . . Triggered . | . . . Machines | -11 -10 -10 ---------- Run | Yrd Mat Min Machines Disabled 6 | . 2 4 Max in Single Turn 2 | . 1 2 Machines Repaired . | . . . Machines Dismantled . | . . . Machines Sabotaged . | . . . Overloaded Fab Kills . | . . . Hacking | -11 -10 -10 --------- Run | Yrd Mat Min Machines Accessed 2 | . 2 . Terminals 2 | . 2 . Fabricators . | . . . Repair Stations . | . . . Recycling Units . | . . . Scanalyzers . | . . . Garrison Access . | . . . Total Hacks 9 | . 9 . Successful 6 | . 6 . Failed 3 | . 3 . Catastrophic 2 | . 2 . Database Lockouts . | . . . Manual . | . . . Terminals 9 | . 9 . Fabricators . | . . . Repair Stations . | . . . Recycling Units . | . . . Scanalyzers . | . . . Garrison Access . | . . . Terminal Hacks 6 | . 6 . Record 4 | . 4 . Branch Access Points 1 | . 1 . Unreport Threat 1 | . 1 . Fabricator Hacks . | . . . Repair Station Hacks . | . . . Recycling Unit Hacks . | . . . Scanalyzer . | . . . Garrison Access Hacks . | . . . Unauthorized Hacks . | . . . Terminals . | . . . Fabricators . | . . . Repair Stations . | . . . Recycling Units . | . . . Scanalyzers . | . . . Garrison Access . | . . . Data Cores Recovered . | . . . Used . | . . . Hacking Detections 2 | . 2 . Full Trace Events 1 | . 1 . Feedback Events . | . . . Feedback Blocked . | . . . Robot Schematics Acquired . | . . . Robots Built . | . . . Authchips . | . . . Time . | . . . Total Robot Build Rating . | . . . Part Schematics Acquired . | . . . Parts Built . | . . . Authchips . | . . . Time . | . . . Total Part Build Rating . | . . . Parts Repaired . | . . . Time . | . . . Parts Recycled . | . . . Recycled Matter . | . . . Retrieved Matter . | . . . Retrieved Components . | . . . Parts Scanalyzed . | . . . Part Schematics Acquired . | . . . Parts Damaged . | . . . Bothacking | -11 -10 -10 ------------ Run | Yrd Mat Min Used RIF Installer . | . . . Robots Hacked . | . . . Non-combat . | . . . Combat . | . . . Robot Hacks Applied . | . . . Relay Couplers Released . | . . . Fabnet Peak Effective % . | . . . Robots Rewired . | . . . Allies Hacked . | . . . Hacks Repelled . | . . . Allies | -11 -10 -10 -------- Run | Yrd Mat Min Total Allies . | . . . Largest Group . | . . . Highest-Rated Group . | . . . Highest-Rated Ally . | . . . Total Orders . | . . . Ally Attacks . | . . . Total Damage . | . . . Kills . | . . . Allies Corrupted . | . . . Allies Melted . | . . . Intel | -11 -10 -10 ------- Run | Yrd Mat Min Robot Analysis Total . | . . . Derelict Logs Recovered 1 | . . 1 Drone Launches . | . . . Drone Recoveries . | . . . Exploration | -11 -10 -10 ------------- Run | Yrd Mat Min Turns Passed 601 | 51 256 294 Spaces Moved 411 | 39 170 202 Core 12 | 11 . 1 Treads . | . . . Legs 399 | 28 170 201 Wheels . | . . . Hover . | . . . Flight . | . . . Fastest Speed 50 | 50 120 100 Average Speed 118 | 100 120 119 Slowest Speed 120 | 120 120 120 Overloaded Moves . | . . . Propulsion Burnouts . | . . . Robots Hopped . | . . . Cave-ins Triggered . | . . . Exploration Rate (%) 32 | 3 41 52 Regions Visited 2 Branch Regions 1 Pre-discovered Areas . | . . . Known Exits Taken 1 | . 1 . Unknown Exits Taken 1 | 1 . . Scrap Searched 2 | . . 2 Spaces Dug . | . . . Terrain Destroyed 122 | . 17 105 Melee . | . . . Projectile . | . . . AOE 122 | . 17 105 Terrain Rammed . | . . . Walls Destroyed . | . . . Machines Disabled . | . . . Actions | -11 -10 -10 --------- Run | Yrd Mat Min Total 472 | 51 193 228 Wait 2 | . . 2 Move 409 | 38 169 202 Hop . | . . . Pick Up 16 | 7 6 3 Fast Attach . | . . . Attach 12 | 6 1 5 Detach . | . . . Swap 4 | . 2 2 Drop 1 | . 1 . Fire 27 | . 14 13 Melee . | . . . Ram . | . . . Kick 1 | . . 1 Crush . | . . . Escape Stasis . | . . . Rewire . | . . . Trap . | . . . Miscellaneous . | . . . Route ------- -11/Scrapyard -10/Materials (discovered 2 exits: *Min x2) -10/Mines (discovered 1 exit: [*Mat]) History --------- Turn | Location | Event 4 | -11/Scrapyard | Discovered new exit (range 16) 52 | -11/Scrapyard | Entered Materials 66 | -10/Materials | Identified exit to Mines 303 | -10/Materials | Build established: Mutant 308 | -10/Materials | Entered Mines 340 | -10/Mines | Met a Derelict bent on vengeance 354 | -10/Mines | Discovered new exit (range 8) 370 | -10/Mines | Learned Materials non-interactive machine intel 568 | -10/Mines | Assembled infested the area 575 | -10/Mines | Core integrity fell below 50% 601 | -10/Mines | Core integrity fell below 20% 602 | -10/Mines | Destroyed by D-53 Grenadier with Mini Grenade Launcher Last Messages --------------- 00584_ Destroyed Asb. Hover Unit. 00584_ as-34226 destroyed. 00584_ Destroyed Asb. Hover Unit. 00584_ JS-WDF(g) destroyed. 00585_ The unstable cave ceiling collapses. 00586_ Grenade Launcher destroyed. 00587_ The unstable cave ceiling collapses. 00587_ Tractor Beam destroyed. 00589_ as-63831 destroyed. 00589_ C-30 ARC bursts open, deploying its payload. 00589_ D-53 Grenadier unfolds itself. 00592_ The unstable cave ceiling collapses. 00592_ as-38997 destroyed. 00593_ The unstable cave ceiling collapses. 00594_ Aluminum Leg destroyed. 00595_ Acquired 72 matter. 00600_ as-90547 destroyed. 00600_ as-76750 destroyed. 00600_ as-96310 destroyed. 00602_ The unstable cave ceiling collapses. Map ----- +----------------------------------------------------+ | ?????????????????????????????????????????????????? | | ?????????????????????????????????????????????????? | | ?????????????????????????????????????????????????? | | ?????????????????????????????????????????????????? | | ?????????????????????????????????????????????????? | | ?????????????????????????????????????????????????? | | ?????????????????????????????????????????????????? | | ?????????????????????????????????????????????????? | | ?????????????????????????????????????????????????? | | ?????????????????????????????????????????????????? | | ?????????????????????????# ?????????????????????? | | ??????????????????????# ? ?????????????????????? | | ?????????????????????? ?????????????????????? | | ???????????????????### ?????????????????????? | | ??????????????????## ?????????????????????? | | ??????????????##### # # #?????????????????????? | | ??????????????? #?????? ??????????????? | | ???????????????? ###??? ??????????????? | | ?????????????????# ### ???????????????? | | ?????????????????# % % ???????????????? | | ??????????????##### % ????????????????? | | ?????????????## # ?????????????????? | | ?????????????# ??????????????????? | | ?????????????# #?????????????????????? | | ????????????## #??????????????????????? | | ????????????## @#??????????????????????? | | ?????????????# #??????????????????????? | | ?????###?????# d #??????????????????????? | | ????## ##### d # #??????????????????????? | | ????# ##t ###??????????????????????? | | ????# #????????????????????????? | | ????# ## #????????????????????????? | | ????# ##?### #???????????????????????? | | ????## #????## #???????????????????????? | | ?????## #?????## #???????????????????????? | | ??????# #???????##???????????????????????? | | ??????## " ##??????????????????#?????????????? | | ???????## "%##????????????????? #?????????????? | | ????????### "##???????????????? #?????????????? | | ??????????## ################ #?????????????? | | ???????????# #?????????????? | | ??????????## | | [ #?????????????? | | ?????????## ### ######### #?????????????? | | ?????????# ##?# #????????# #????????????? | | ?????????# ##??# #?????????# ?????????? | | ?????????## ##??# #??????????# #??????? | | ??????????# #??# ###?????????# ???????? | | ???####???# #??# #?????????## ### ???????? | | #### ##??# #??#### #????????????#???????????? | | #??## #?????# #????????????????????????? | +----------------------------------------------------+ Best States ------------- Heat Dissipation 25 Energy Generation 10 Energy Capacity 250 Matter Stores 300 Matter Capacity 300 Sight Range 16 Terrain Scan Density 10 Armor Coverage 150 Evasion (%) 55 Item Schematics ----------------- None Robot Schematics ------------------ None Fabricated ------------ Nothing Alien Tech Used ----------------- None Achievements -------------- None Challenges ------------ None Game ------ Seed LightpackTargetFrame Manual? 0 Play Time 00:10:59 Cumulative 7.5 hours Start 2024.04.01 @ 20:02:55 End 2024.04.01 @ 20:18:34 Sessions 1 Manual Loads 0 Difficulty Rogue Special Mode None Game No. 23 Rogue 20 Adventurer 3 Explorer 0 Win Type - Total 0 Types 0/0/0/0/0/0/0/0/0 Lore% 14 Gallery% 13 Achievement% 17 Wizard Run 0 Options --------- Layout 1 ASCII 0 Keyboard 0 Movement Mouse Keybinds 0 Fullscreen 1 Font 32/SmallcapsGlow Map View 77x35 Zoom Use 0% Tactical HUD 1 Map Filters NONE Filters NONE Steam 1 RUN: b2882aad-01b7-4516-8986-7fb708d10a74